[Event "Late-Titled-Tuesday-Blitz-June-25-2024"]
[Site "Chess.com"]
[Date "2024.06.25"]
[Round "2"]
[White "HeroWilczek"]
[Black "prxcess_brownie"]
[Result "0-1"]
[WhiteElo "2459"]
[BlackElo "2224"]
[TimeControl "180+1"]
[EndTime "14:18:26 PDT"]
[Termination "prxcess_brownie won on time"]

1. e4 {[%clk 0:03:00.2]} 1... c5 {[%clk 0:02:59.4]} 2. Nc3 {[%clk 0:02:59.8]}
2... Nc6 {[%clk 0:02:56.5]} 3. g3 {[%clk 0:02:58.6]} 3... g6 {[%clk 0:02:56]} 4.
Bg2 {[%clk 0:02:59]} 4... Bg7 {[%clk 0:02:55.9]} 5. Nge2 {[%clk 0:02:59.7]} 5...
e5 {[%clk 0:02:54.8]} 6. O-O {[%clk 0:02:52.2]} 6... Nge7 {[%clk 0:02:54.4]} 7.
d3 {[%clk 0:02:50.5]} 7... O-O {[%clk 0:02:50.5]} 8. f4 {[%clk 0:02:51]} 8... d6
{[%clk 0:02:38.7]} 9. Nd5 {[%clk 0:02:51.1]} 9... Nxd5 {[%clk 0:02:36.1]} 10.
exd5 {[%clk 0:02:52]} 10... Ne7 {[%clk 0:02:36.1]} 11. Kh1 {[%clk 0:02:45.8]}
11... Bg4 {[%clk 0:02:30.6]} 12. h3 {[%clk 0:02:44.2]} 12... Bxe2 {[%clk
0:02:29.3]} 13. Qxe2 {[%clk 0:02:45.1]} 13... Qd7 {[%clk 0:02:26.3]} 14. Kh2
{[%clk 0:02:43.1]} 14... Rfe8 {[%clk 0:02:22.7]} 15. Qf2 {[%clk 0:02:36.5]}
15... exf4 {[%clk 0:02:18]} 16. Bxf4 {[%clk 0:02:32.6]} 16... Nf5 {[%clk
0:02:14.6]} 17. c3 {[%clk 0:02:27.4]} 17... b5 {[%clk 0:01:59.7]} 18. g4 {[%clk
0:02:22.3]} 18... Ne7 {[%clk 0:01:57]} 19. Qg3 {[%clk 0:02:22.2]} 19... Nc8
{[%clk 0:01:53.3]} 20. Rae1 {[%clk 0:02:21.4]} 20... Nb6 {[%clk 0:01:45.4]} 21.
Bxd6 {[%clk 0:02:16]} 21... Rxe1 {[%clk 0:01:42.8]} 22. Rxe1 {[%clk 0:02:15.5]}
22... Rd8 {[%clk 0:01:42.8]} 23. Bc7 {[%clk 0:01:42.8]} 23... Rc8 {[%clk
0:01:31.8]} 24. d6 {[%clk 0:01:41.6]} 24... Bf8 {[%clk 0:01:23.1]} 25. Kh1
{[%clk 0:01:27.8]} 25... Re8 {[%clk 0:01:16.6]} 26. Re5 {[%clk 0:01:00.9]} 26...
f6 {[%clk 0:01:00.1]} 27. Rxe8 {[%clk 0:00:50.6]} 27... Qxe8 {[%clk 0:01:01]}
28. Qf2 {[%clk 0:00:43.6]} 28... Qe5 {[%clk 0:00:47.3]} 29. d4 {[%clk
0:00:38.4]} 29... cxd4 {[%clk 0:00:42.9]} 30. cxd4 {[%clk 0:00:38.5]} 30... Qe6
{[%clk 0:00:37.9]} 31. Qf4 {[%clk 0:00:29.5]} 31... Kg7 {[%clk 0:00:32.2]} 32.
a3 {[%clk 0:00:25.1]} 32... Nc4 {[%clk 0:00:27.2]} 33. d5 {[%clk 0:00:21.3]}
33... Qd7 {[%clk 0:00:23.9]} 34. g5 {[%clk 0:00:17.8]} 34... fxg5 {[%clk
0:00:19.6]} 35. Qd4+ {[%clk 0:00:16.2]} 35... Kh6 {[%clk 0:00:18.7]} 36. Qxa7
{[%clk 0:00:13.2]} 36... Bxd6 {[%clk 0:00:18.2]} 37. Bb8 {[%clk 0:00:11.8]}
37... Qf5 {[%clk 0:00:15.4]} 38. Bxd6 {[%clk 0:00:09.6]} 38... Nxd6 {[%clk
0:00:16.3]} 39. Qd4 {[%clk 0:00:08.4]} 39... Nc4 {[%clk 0:00:14.9]} 40. Kh2
{[%clk 0:00:06.6]} 40... Nd6 {[%clk 0:00:14.5]} 41. b4 {[%clk 0:00:04.4]} 41...
Qf4+ {[%clk 0:00:11.7]} 42. Qxf4 {[%clk 0:00:03.8]} 42... gxf4 {[%clk
0:00:12.6]} 43. Bf3 {[%clk 0:00:02.9]} 43... Kg5 {[%clk 0:00:12.7]} 44. Kg2
{[%clk 0:00:03.6]} 44... Kf5 {[%clk 0:00:12.9]} 45. Kf2 {[%clk 0:00:03.9]} 45...
Ke5 {[%clk 0:00:12.9]} 46. Ke2 {[%clk 0:00:04.6]} 46... h5 {[%clk 0:00:11.7]}
47. Kd3 {[%clk 0:00:03.6]} 47... g5 {[%clk 0:00:08.5]} 48. Bxh5 {[%clk
0:00:03.1]} 48... Kxd5 {[%clk 0:00:08.3]} 49. Bf3+ {[%clk 0:00:03.4]} 49... Ke5
{[%clk 0:00:08.4]} 50. Be2 {[%clk 0:00:03.9]} 50... Kd5 {[%clk 0:00:08.1]} 51.
Bf3+ {[%clk 0:00:03.3]} 51... Ke5 {[%clk 0:00:08.3]} 52. Kc3 {[%clk 0:00:03.9]}
52... Kf5 {[%clk 0:00:07.6]} 53. Bg4+ {[%clk 0:00:03.7]} 53... Ke5 {[%clk
0:00:07.3]} 54. Bf3 {[%clk 0:00:03.8]} 54... Kf5 {[%clk 0:00:07.4]} 55. Kd4
{[%clk 0:00:04.4]} 55... Ke6 {[%clk 0:00:07.2]} 56. Kc5 {[%clk 0:00:04.7]} 56...
Ke5 {[%clk 0:00:07.1]} 57. Be2 {[%clk 0:00:03.8]} 57... Ke6 {[%clk 0:00:06.5]}
58. Bf3 {[%clk 0:00:03.1]} 58... Ke5 {[%clk 0:00:06.1]} 59. Be2 {[%clk
0:00:03.7]} 59... Ke6 {[%clk 0:00:06.2]} 60. Bg4+ {[%clk 0:00:03.2]} 60... Ke5
{[%clk 0:00:06.3]} 61. Bf3 {[%clk 0:00:03.9]} 61... Ke6 {[%clk 0:00:06.3]} 62.
Bg2 {[%clk 0:00:04.5]} 62... Ke5 {[%clk 0:00:06.5]} 63. Bd5 {[%clk 0:00:05.2]}
63... Ne4+ {[%clk 0:00:03.6]} 64. Kc6 {[%clk 0:00:04.1]} 64... f3 {[%clk
0:00:03.8]} 0-1

[Event "Late-Titled-Tuesday-Blitz-June-25-2024"]
[Site "Chess.com"]
[Date "2024.06.25"]
[Round "2"]
[White "rhungaski"]
[Black "tptagain"]
[Result "0-1"]
[WhiteElo "2619"]
[BlackElo "3019"]
[TimeControl "180+1"]
[EndTime "14:18:32 PDT"]
[Termination "tptagain won on time"]

1. b3 {[%clk 0:03:00.9]} 1... d5 {[%clk 0:02:59.6]} 2. Bb2 {[%clk 0:03:00]} 2...
Bf5 {[%clk 0:02:59.6]} 3. g3 {[%clk 0:02:58.4]} 3... e6 {[%clk 0:02:59.3]} 4.
Bg2 {[%clk 0:02:58.9]} 4... Nf6 {[%clk 0:02:59.2]} 5. Nf3 {[%clk 0:02:59.4]}
5... Be7 {[%clk 0:02:56.5]} 6. O-O {[%clk 0:02:59.8]} 6... a5 {[%clk 0:02:55.9]}
7. a3 {[%clk 0:02:59.1]} 7... h6 {[%clk 0:02:55.8]} 8. c4 {[%clk 0:02:58.9]}
8... O-O {[%clk 0:02:52.9]} 9. d3 {[%clk 0:02:57.9]} 9... c5 {[%clk 0:02:49.6]}
10. Nc3 {[%clk 0:02:30.4]} 10... d4 {[%clk 0:02:45.4]} 11. Nb5 {[%clk
0:02:28.7]} 11... Nc6 {[%clk 0:02:45.8]} 12. Nd2 {[%clk 0:02:00.9]} 12... e5
{[%clk 0:02:38.6]} 13. Qc2 {[%clk 0:01:59.3]} 13... Qd7 {[%clk 0:02:33.8]} 14.
Rad1 {[%clk 0:01:59.6]} 14... Rad8 {[%clk 0:02:23.6]} 15. Bc1 {[%clk 0:01:59]}
15... Rfe8 {[%clk 0:02:13.8]} 16. Ne4 {[%clk 0:01:56.3]} 16... Nxe4 {[%clk
0:02:13.7]} 17. Bxe4 {[%clk 0:01:50.9]} 17... Bxe4 {[%clk 0:02:13.4]} 18. dxe4
{[%clk 0:01:51.8]} 18... h5 {[%clk 0:02:01.7]} 19. Qd3 {[%clk 0:01:43.2]} 19...
h4 {[%clk 0:01:42.4]} 20. gxh4 {[%clk 0:01:41.9]} 20... Bxh4 {[%clk 0:01:41]}
21. Kh1 {[%clk 0:01:37.8]} 21... g6 {[%clk 0:01:40]} 22. Bd2 {[%clk 0:01:26.1]}
22... Kg7 {[%clk 0:01:38.8]} 23. Rg1 {[%clk 0:01:15.9]} 23... Bxf2 {[%clk
0:01:35.4]} 24. Rg2 {[%clk 0:01:15.9]} 24... Bh4 {[%clk 0:01:32.3]} 25. Rdg1
{[%clk 0:01:10.7]} 25... Rh8 {[%clk 0:01:31.3]} 26. Qf3 {[%clk 0:01:05.9]} 26...
d3 {[%clk 0:00:50.2]} 27. e3 {[%clk 0:01:05.6]} 27... Bf6 {[%clk 0:00:43]} 28.
Nc3 {[%clk 0:01:04]} 28... Rh3 {[%clk 0:00:38.8]} 29. Rg3 {[%clk 0:01:04]} 29...
Rdh8 {[%clk 0:00:35.7]} 30. R1g2 {[%clk 0:01:02.3]} 30... Rxg3 {[%clk
0:00:35.2]} 31. Rxg3 {[%clk 0:01:03.2]} 31... Ne7 {[%clk 0:00:33.1]} 32. Kg2
{[%clk 0:00:56.1]} 32... Qe6 {[%clk 0:00:30.8]} 33. a4 {[%clk 0:00:50.1]} 33...
Qb6 {[%clk 0:00:30.2]} 34. Nb5 {[%clk 0:00:45.2]} 34... Nc8 {[%clk 0:00:28.6]}
35. Qf1 {[%clk 0:00:34.4]} 35... Rd8 {[%clk 0:00:23.2]} 36. Rf3 {[%clk
0:00:32.7]} 36... Qc6 {[%clk 0:00:23]} 37. Nc3 {[%clk 0:00:31.9]} 37... Ne7
{[%clk 0:00:22.9]} 38. Nd5 {[%clk 0:00:31.8]} 38... Nxd5 {[%clk 0:00:22.9]} 39.
exd5 {[%clk 0:00:30.6]} 39... Qd6 {[%clk 0:00:23.2]} 40. e4 {[%clk 0:00:30.4]}
40... b6 {[%clk 0:00:21.7]} 41. h3 {[%clk 0:00:11.9]} 41... Rh8 {[%clk
0:00:19.7]} 42. Qxd3 {[%clk 0:00:12.5]} 42... Bh4 {[%clk 0:00:19.2]} 43. Qf1
{[%clk 0:00:12.9]} 43... f6 {[%clk 0:00:19.6]} 44. Be3 {[%clk 0:00:13]} 44...
Qd7 {[%clk 0:00:19.8]} 45. Qe2 {[%clk 0:00:12.2]} 45... Re8 {[%clk 0:00:16.4]}
46. Rf1 {[%clk 0:00:12]} 46... Rh8 {[%clk 0:00:15.2]} 47. Qf3 {[%clk 0:00:11.3]}
47... Rh7 {[%clk 0:00:14.3]} 48. Rg1 {[%clk 0:00:11.3]} 48... Kf7 {[%clk
0:00:14]} 49. Kf1 {[%clk 0:00:11.5]} 49... Rh8 {[%clk 0:00:11.2]} 50. Ke2 {[%clk
0:00:11.3]} 50... Qc8 {[%clk 0:00:08.7]} 51. Rg2 {[%clk 0:00:11.4]} 51... Qd7
{[%clk 0:00:08.8]} 52. Kd1 {[%clk 0:00:11.5]} 52... Qe8 {[%clk 0:00:08.8]} 53.
Ke2 {[%clk 0:00:11.8]} 53... Qc8 {[%clk 0:00:08.9]} 54. Kd1 {[%clk 0:00:11.8]}
54... Qd7 {[%clk 0:00:09.1]} 55. Rg1 {[%clk 0:00:11.6]} 55... Kg7 {[%clk
0:00:07.1]} 56. Rf1 {[%clk 0:00:11.7]} 56... Kf7 {[%clk 0:00:06.6]} 57. Kc2
{[%clk 0:00:11.6]} 57... Kg7 {[%clk 0:00:06.7]} 58. Kb1 {[%clk 0:00:11.7]} 58...
Rf8 {[%clk 0:00:07.1]} 59. Bd2 {[%clk 0:00:10.9]} 59... f5 {[%clk 0:00:07.4]}
60. Qe2 {[%clk 0:00:05.9]} 60... f4 {[%clk 0:00:07.3]} 61. Qf3 {[%clk
0:00:05.3]} 61... Bg3 {[%clk 0:00:07.2]} 62. Rh1 {[%clk 0:00:05.5]} 62... Rh8
{[%clk 0:00:06.9]} 63. Qg2 {[%clk 0:00:05.1]} 63... Qe7 {[%clk 0:00:06.5]} 64.
Bc3 {[%clk 0:00:03.8]} 64... Qg5 {[%clk 0:00:05.9]} 65. Qf3 {[%clk 0:00:03.6]}
65... Qh5 {[%clk 0:00:05.3]} 66. Qg2 {[%clk 0:00:03.1]} 66... Kf6 {[%clk
0:00:05.5]} 67. Ka2 {[%clk 0:00:02]} 67... Ke7 {[%clk 0:00:05.8]} 68. Qb2 {[%clk
0:00:01.8]} 68... Kd6 {[%clk 0:00:06]} 0-1

[Event "Late-Titled-Tuesday-Blitz-June-25-2024"]
[Site "Chess.com"]
[Date "2024.06.25"]
[Round "2"]
[White "szefru"]
[Black "chesselephant"]
[Result "0-1"]
[WhiteElo "2370"]
[BlackElo "2601"]
[TimeControl "180+1"]
[EndTime "14:18:38 PDT"]
[Termination "chesselephant won by checkmate"]

1. e4 {[%clk 0:03:00.9]} 1... e5 {[%clk 0:02:59.9]} 2. Nf3 {[%clk 0:02:56.1]}
2... Nc6 {[%clk 0:02:59.8]} 3. Bb5 {[%clk 0:02:48.8]} 3... a6 {[%clk 0:02:59.7]}
4. Ba4 {[%clk 0:02:46.4]} 4... Nf6 {[%clk 0:02:59.1]} 5. O-O {[%clk 0:02:44]}
5... Be7 {[%clk 0:02:59]} 6. c3 {[%clk 0:02:36.1]} 6... Nxe4 {[%clk 0:02:56.6]}
7. Bxc6 {[%clk 0:02:26.9]} 7... dxc6 {[%clk 0:02:56]} 8. d3 {[%clk 0:02:22.5]}
8... Nc5 {[%clk 0:02:53.4]} 9. Nxe5 {[%clk 0:02:17.6]} 9... O-O {[%clk
0:02:53.2]} 10. d4 {[%clk 0:02:16.9]} 10... Nd7 {[%clk 0:02:43.2]} 11. f4 {[%clk
0:02:02.4]} 11... c5 {[%clk 0:02:39.2]} 12. d5 {[%clk 0:01:59.6]} 12... Nb6
{[%clk 0:02:33.7]} 13. c4 {[%clk 0:01:34.5]} 13... f6 {[%clk 0:02:33.7]} 14. Nd3
{[%clk 0:01:15.4]} 14... Nxc4 {[%clk 0:02:31.3]} 15. Qb3 {[%clk 0:01:15.3]}
15... Nd6 {[%clk 0:02:30.3]} 16. Nxc5 {[%clk 0:01:12.3]} 16... Qe8 {[%clk
0:02:17.1]} 17. Nc3 {[%clk 0:01:04.3]} 17... Kh8 {[%clk 0:01:42.6]} 18. Bd2
{[%clk 0:00:49.3]} 18... Qg6 {[%clk 0:00:35]} 19. Ne6 {[%clk 0:00:36.9]} 19...
Bxe6 {[%clk 0:00:31.2]} 20. dxe6 {[%clk 0:00:37.8]} 20... c6 {[%clk 0:00:25.5]}
21. Rae1 {[%clk 0:00:22.6]} 21... Rae8 {[%clk 0:00:20.1]} 22. Qa4 {[%clk
0:00:22.9]} 22... Qd3 {[%clk 0:00:18]} 23. Ne4 {[%clk 0:00:21.9]} 23... Nxe4
{[%clk 0:00:16.1]} 24. Qxe4 {[%clk 0:00:22]} 24... Qxd2 {[%clk 0:00:16.6]} 25.
f5 {[%clk 0:00:22.5]} 25... Qb4 {[%clk 0:00:11.3]} 26. Qc2 {[%clk 0:00:19.2]}
26... Qc5+ {[%clk 0:00:11.2]} 27. Qxc5 {[%clk 0:00:17.9]} 27... Bxc5+ {[%clk
0:00:12.1]} 28. Kh1 {[%clk 0:00:18.6]} 28... g6 {[%clk 0:00:12.6]} 29. g4 {[%clk
0:00:18.4]} 29... h5 {[%clk 0:00:12.6]} 30. h3 {[%clk 0:00:14.5]} 30... hxg4
{[%clk 0:00:12.4]} 31. hxg4 {[%clk 0:00:15.4]} 31... Kg7 {[%clk 0:00:11.8]} 32.
Kg2 {[%clk 0:00:14.8]} 32... Re7 {[%clk 0:00:06]} 33. Rd1 {[%clk 0:00:14.4]}
33... g5 {[%clk 0:00:04.4]} 34. Rf3 {[%clk 0:00:12.2]} 34... Rfe8 {[%clk
0:00:04.6]} 35. Rfd3 {[%clk 0:00:12.1]} 35... Kf8 {[%clk 0:00:04.5]} 36. Rh3
{[%clk 0:00:11.8]} 36... Kg7 {[%clk 0:00:04.4]} 37. Rdh1 {[%clk 0:00:11.6]}
37... Rg8 {[%clk 0:00:02.4]} 38. Rd3 {[%clk 0:00:09.4]} 38... Kf8 {[%clk
0:00:02.7]} 39. Rd8+ {[%clk 0:00:08.9]} 39... Kg7 {[%clk 0:00:03.1]} 40. Rd3
{[%clk 0:00:09.3]} 40... Rh8 {[%clk 0:00:02.9]} 41. Rhd1 {[%clk 0:00:08.2]}
41... Rh4 {[%clk 0:00:03.2]} 42. Kg3 {[%clk 0:00:08]} 42... Bb6 {[%clk
0:00:02.8]} 43. Rd7 {[%clk 0:00:07.6]} 43... Kf8 {[%clk 0:00:03.4]} 44. Rxe7
{[%clk 0:00:07.2]} 44... Kxe7 {[%clk 0:00:04.3]} 45. Rd7+ {[%clk 0:00:07.6]}
45... Ke8 {[%clk 0:00:05]} 46. Rxb7 {[%clk 0:00:08.3]} 46... Bd4 {[%clk
0:00:05.5]} 47. b3 {[%clk 0:00:07.7]} 47... Be5+ {[%clk 0:00:06.2]} 48. Kf3
{[%clk 0:00:08.3]} 48... Rh3+ {[%clk 0:00:06.9]} 49. Ke4 {[%clk 0:00:08.5]}
49... Rg3 {[%clk 0:00:07.6]} 50. Ra7 {[%clk 0:00:07.8]} 50... Rxg4+ {[%clk
0:00:08.1]} 51. Kd3 {[%clk 0:00:08.4]} 51... Rd4+ {[%clk 0:00:08.4]} 52. Kc3
{[%clk 0:00:08.7]} 52... a5 {[%clk 0:00:08.5]} 53. Kc2 {[%clk 0:00:08.9]} 53...
Rf4 {[%clk 0:00:08.2]} 54. Rxa5 {[%clk 0:00:08.5]} 54... Rxf5 {[%clk 0:00:08.5]}
55. Ra8+ {[%clk 0:00:08.8]} 55... Ke7 {[%clk 0:00:09]} 56. a4 {[%clk 0:00:09.7]}
56... Kxe6 {[%clk 0:00:09.4]} 57. a5 {[%clk 0:00:10.4]} 57... Rf2+ {[%clk
0:00:09.4]} 58. Kd3 {[%clk 0:00:10.3]} 58... Rb2 {[%clk 0:00:09.7]} 59. Kc4
{[%clk 0:00:10.7]} 59... Rc2+ {[%clk 0:00:10.1]} 60. Kd3 {[%clk 0:00:10.9]}
60... Rc3+ {[%clk 0:00:10.7]} 61. Ke4 {[%clk 0:00:11.5]} 61... Rxb3 {[%clk
0:00:11.6]} 62. Re8+ {[%clk 0:00:10.2]} 62... Kd7 {[%clk 0:00:11.4]} 63. Rf8
{[%clk 0:00:10.3]} 63... Ke7 {[%clk 0:00:10.2]} 64. Rc8 {[%clk 0:00:10]} 64...
Rb4+ {[%clk 0:00:10.7]} 65. Kf5 {[%clk 0:00:10]} 65... Rf4+ {[%clk 0:00:11]} 66.
Kg6 {[%clk 0:00:10.6]} 66... Kd7 {[%clk 0:00:11.6]} 67. Ra8 {[%clk 0:00:09.5]}
67... g4 {[%clk 0:00:11.7]} 68. a6 {[%clk 0:00:09.6]} 68... Ra4 {[%clk
0:00:11.6]} 69. Ra7+ {[%clk 0:00:07]} 69... Ke6 {[%clk 0:00:11]} 70. Ra8 {[%clk
0:00:05.9]} 70... Kd5 {[%clk 0:00:10.3]} 71. Rd8+ {[%clk 0:00:05.4]} 71... Ke4
{[%clk 0:00:10.7]} 72. Kh5 {[%clk 0:00:05.2]} 72... g3 {[%clk 0:00:10.4]} 73.
Rg8 {[%clk 0:00:03.6]} 73... Rxa6 {[%clk 0:00:10.5]} 74. Rg4+ {[%clk 0:00:04]}
74... Kf3 {[%clk 0:00:11.1]} 75. Rg6 {[%clk 0:00:03.9]} 75... g2 {[%clk
0:00:11.4]} 76. Kh4 {[%clk 0:00:04]} 76... Ra1 {[%clk 0:00:11.6]} 77. Kh5 {[%clk
0:00:02.1]} 77... Rh1# {[%clk 0:00:12]} 0-1

[Event "Late-Titled-Tuesday-Blitz-June-25-2024"]
[Site "Chess.com"]
[Date "2024.06.25"]
[Round "2"]
[White "CoachVadim"]
[Black "grzechu96"]
[Result "0-1"]
[WhiteElo "2403"]
[BlackElo "2766"]
[TimeControl "180+1"]
[EndTime "14:18:40 PDT"]
[Termination "grzechu96 won by resignation"]

1. Nf3 {[%clk 0:03:00.9]} 1... d5 {[%clk 0:02:59.1]} 2. g3 {[%clk 0:03:01.2]}
2... Nf6 {[%clk 0:02:58]} 3. Bg2 {[%clk 0:03:01.4]} 3... Bg4 {[%clk 0:02:57.4]}
4. c4 {[%clk 0:02:56.6]} 4... e6 {[%clk 0:02:39.1]} 5. Qb3 {[%clk 0:02:41.7]}
5... b6 {[%clk 0:02:09.9]} 6. Ne5 {[%clk 0:02:29.3]} 6... Bh5 {[%clk 0:02:05.2]}
7. Nc3 {[%clk 0:02:13.9]} 7... Bd6 {[%clk 0:02:01.3]} 8. d4 {[%clk 0:02:13.4]}
8... c6 {[%clk 0:01:56.5]} 9. cxd5 {[%clk 0:01:46.7]} 9... cxd5 {[%clk
0:01:54.3]} 10. Qa4+ {[%clk 0:01:16.5]} 10... Nfd7 {[%clk 0:01:37.9]} 11. Bf4
{[%clk 0:00:59.3]} 11... Bxe5 {[%clk 0:01:20.8]} 12. Bxe5 {[%clk 0:00:57]} 12...
O-O {[%clk 0:01:20.1]} 13. Bd6 {[%clk 0:00:52.9]} 13... Re8 {[%clk 0:01:17.5]}
14. Nb5 {[%clk 0:00:50.8]} 14... Nf6 {[%clk 0:00:47.6]} 15. Rc1 {[%clk
0:00:45.7]} 15... Qd7 {[%clk 0:00:22.4]} 16. Rc7 {[%clk 0:00:42.9]} 16... Qd8
{[%clk 0:00:22.3]} 17. Rxa7 {[%clk 0:00:38.5]} 17... Nc6 {[%clk 0:00:19.2]} 18.
Rxa8 {[%clk 0:00:27.8]} 18... Qxa8 {[%clk 0:00:20.1]} 19. Qxa8 {[%clk
0:00:26.1]} 19... Rxa8 {[%clk 0:00:21]} 20. a3 {[%clk 0:00:22.6]} 20... Ra5
{[%clk 0:00:20.5]} 21. Nc3 {[%clk 0:00:15.7]} 21... Nxd4 {[%clk 0:00:20.4]} 22.
f3 {[%clk 0:00:09.1]} 22... Bg6 {[%clk 0:00:19]} 23. Kf2 {[%clk 0:00:07.5]}
23... Nb3 {[%clk 0:00:19.2]} 24. Rd1 {[%clk 0:00:05.9]} 24... h6 {[%clk
0:00:14.9]} 25. e4 {[%clk 0:00:05.1]} 25... dxe4 {[%clk 0:00:11.1]} 26. fxe4
{[%clk 0:00:06]} 26... Kh7 {[%clk 0:00:04.1]} 27. Bb4 {[%clk 0:00:05.3]} 27...
Ra7 {[%clk 0:00:03.7]} 28. e5 {[%clk 0:00:05.7]} 28... Ng4+ {[%clk 0:00:04]} 29.
Ke1 {[%clk 0:00:06]} 29... Nxe5 {[%clk 0:00:04.9]} 30. Rd8 {[%clk 0:00:06.2]}
30... Nd3+ {[%clk 0:00:05.1]} 31. Ke2 {[%clk 0:00:05.8]} 31... Nxb4 {[%clk
0:00:05.2]} 32. axb4 {[%clk 0:00:06.2]} 32... Ra1 {[%clk 0:00:05.8]} 33. Ne4
{[%clk 0:00:05.8]} 33... Rb1 {[%clk 0:00:05.4]} 34. Nd6 {[%clk 0:00:04.7]} 34...
Rxb2+ {[%clk 0:00:05.7]} 35. Kf1 {[%clk 0:00:05.4]} 35... Nd2+ {[%clk
0:00:05.8]} 36. Kg1 {[%clk 0:00:05.4]} 36... Rxb4 {[%clk 0:00:04.8]} 37. Rb8
{[%clk 0:00:04.5]} 37... Rb2 {[%clk 0:00:04.6]} 38. Bc6 {[%clk 0:00:03.8]} 38...
h5 {[%clk 0:00:04]} 39. Ne8 {[%clk 0:00:03.8]} 39... f6 {[%clk 0:00:03.8]} 40.
Rb7 {[%clk 0:00:03.9]} 40... Bxe8 {[%clk 0:00:03.3]} 41. Bxe8 {[%clk 0:00:03.2]}
41... Nf3+ {[%clk 0:00:03.9]} 42. Kf1 {[%clk 0:00:03.4]} 42... Nxh2+ {[%clk
0:00:04.6]} 43. Ke1 {[%clk 0:00:03.7]} 43... Nf3+ {[%clk 0:00:05.2]} 44. Kd1
{[%clk 0:00:04.4]} 44... Kh6 {[%clk 0:00:05.6]} 45. Bc6 {[%clk 0:00:03.6]} 45...
Nd4 {[%clk 0:00:05.6]} 46. Be4 {[%clk 0:00:03.7]} 46... f5 {[%clk 0:00:06]} 47.
Bd3 {[%clk 0:00:03.5]} 47... g5 {[%clk 0:00:05.8]} 48. Rb8 {[%clk 0:00:03.6]}
48... g4 {[%clk 0:00:06]} 49. Rh8+ {[%clk 0:00:03.9]} 49... Kg6 {[%clk
0:00:06.4]} 50. Rg8+ {[%clk 0:00:04.3]} 50... Kf7 {[%clk 0:00:06.8]} 51. Rh8
{[%clk 0:00:04.8]} 51... Kg6 {[%clk 0:00:06.2]} 52. Rg8+ {[%clk 0:00:04.7]}
52... Kf6 {[%clk 0:00:06.8]} 53. Rf8+ {[%clk 0:00:04.6]} 53... Kg7 {[%clk
0:00:06]} 54. Rd8 {[%clk 0:00:04.7]} 54... Nf3 {[%clk 0:00:06.1]} 55. Rd7+
{[%clk 0:00:05.1]} 55... Kf6 {[%clk 0:00:06]} 56. Be2 {[%clk 0:00:04.9]} 56...
Ne5 {[%clk 0:00:03.9]} 57. Rh7 {[%clk 0:00:04.5]} 57... Kg6 {[%clk 0:00:03.7]}
58. Re7 {[%clk 0:00:04.8]} 58... Kf6 {[%clk 0:00:03.4]} 59. Rh7 {[%clk
0:00:05.2]} 59... Rb3 {[%clk 0:00:03.6]} 60. Rxh5 {[%clk 0:00:03.9]} 60... Rxg3
{[%clk 0:00:03.3]} 61. Rh6+ {[%clk 0:00:04.4]} 61... Ng6 {[%clk 0:00:03.4]} 62.
Bb5 {[%clk 0:00:04.6]} 62... Kg5 {[%clk 0:00:03.6]} 63. Rh7 {[%clk 0:00:04.3]}
63... Nf4 {[%clk 0:00:03.6]} 64. Rg7+ {[%clk 0:00:04.1]} 64... Kf6 {[%clk
0:00:04]} 65. Rb7 {[%clk 0:00:04.5]} 65... Rb3 {[%clk 0:00:04.1]} 66. Rxb6
{[%clk 0:00:04.9]} 66... g3 {[%clk 0:00:04.6]} 0-1